fUST/lending_fUST_20240531
["ID","MTS","AMOUNT","RATE_DAILY","PERIOD"]
[328314713,1717155043579,-267.47375,0.00024875,2]
[328314715,1717155043588,-267.47375,0.00024875,2]
[328314717,1717155043597,-2139.27,0.00024875,14]
[328314718,1717155043607,-2139.27,0.00024875,14]
[328314720,1717155043616,-2139.27,0.00024875,14]
[328314722,1717155043625,-2139.27,0.00024875,14]
[328314724,1717155043635,-2139.27,0.00024875,14]
[328314725,1717155043645,-2139.27,0.00024875,14]
[328314726,1717155043655,-2139.27,0.00024875,14]
[328314727,1717155043664,-2139.27,0.00024875,14]
[328314728,1717155043674,-2139.27,0.00024875,14]
[328314729,1717155043683,-2139.27,0.00024875,14]
[328314730,1717155043692,-2139.27,0.00024875,14]
[328314731,1717155043701,-2139.27,0.00024875,14]
[328314732,1717155043711,-2139.27,0.00024875,14]
[328314733,1717155043720,-2139.27,0.00024875,14]
[328314734,1717155043730,-2139.27,0.00024875,14]
[328314735,1717155043739,-2139.27,0.00024875,14]
[328314736,1717155043749,-2139.27,0.00024875,14]
[328314737,1717155043758,-2139.27,0.00024875,14]
[328314738,1717155043767,-2139.27,0.00024875,14]
[328314739,1717155043777,-2139.27,0.00024875,14]
[328314740,1717155043786,-2139.27,0.00024875,14]
[328314741,1717155043795,-2139.27,0.00024875,14]
[328314742,1717155043804,-2139.27,0.00024875,14]
[328314743,1717155043814,-2139.42047533,0.00024875,14]
[328314744,1717155043823,-151.0,0.00024875,2]
[328314745,1717155043832,-252.073877,0.00024875,2]
[328314746,1717155043841,-151.0,0.00024875,2]
[328314747,1717155043851,-153.046002,0.00024875,2]
[328314748,1717155043860,-151.0,0.00024875,2]
[328314749,1717155043869,-151.0,0.00024875,2]
[328314750,1717155043879,-151.0,0.00024875,2]
[328314751,1717155043887,-151.0,0.00024875,2]
[328314752,1717155043896,-151.0,0.00024875,2]
[328314753,1717155043906,-186.081442,0.00024875,2]
[328314754,1717155043915,-13005.56661982,0.00024876,7]
[328314755,1717155043927,-2704.06668801,0.00024876,7]
[328314756,1717155043936,-10528.09835442,0.00024876,2]
[328314757,1717155043946,-258.67986056,0.00024876,2]
[328314758,1717155043955,-239.88247378,0.00024876,2]
[328314759,1717155043964,-387.5756083,0.00024876,2]
[328314760,1717155043974,-170.90509463,0.00024876,2]
[328314761,1717155043984,-829.14060454,0.00024876,2]
[328314762,1717155043992,-861.69156635,0.00024876,2]
[328314764,1717155044002,-235.72314006,0.00024876,2]
[328314766,1717155044016,-669.30780723,0.00024876,2]
[328314768,1717155044026,-551.47587784,0.00024876,2]
[328314769,1717155044035,-155.05984026,0.00024876,2]
[328314770,1717155044044,-1158.7987068,0.00024876,2]
[328314771,1717155044055,-398.28003923,0.00024876,2]
[328314772,1717155044064,-7906.8425414,0.00024876,2]
[328314773,1717155044074,-163.06247674,0.00024876,2]
[328314774,1717155044083,-265.80146465,0.00024876,2]
[328314775,1717155044095,-178.91570744,0.00024876,2]
[328314776,1717155044106,-160.68177861,0.00024876,2]
[328314777,1717155044115,-165.30323819,0.00024876,2]
[328314778,1717155044124,-312.46261952,0.00024876,2]
[328314779,1717155044134,-235.59312574,0.00024876,2]
[328314780,1717155044144,-155.18676511,0.00024876,2]
[328314781,1717155044154,-10126.94939423,0.00024876,2]
[328314782,1717155044170,-1222.3132788,0.00024876,2]
[328314783,1717155044220,-17245.11911255,0.00024876,2]
[328314784,1717155044322,-7112.63972693,0.00024876,2]
[328314785,1717155044331,-166.10492095,0.00024876,2]
[328314786,1717155044341,-326.17117631,0.00024876,2]
[328314787,1717155044352,-156.12223992,0.00024876,2]
[328314788,1717155044362,-319.54991534,0.00024876,2]
[328314789,1717155044372,-284.82414954,0.00024876,2]
[328314790,1717155044381,-301.40649473,0.00024876,2]
[328314791,1717155044391,-8657.84920378,0.00024876,2]
[328314792,1717155044401,-198.01373889,0.00024876,2]
[328314793,1717155044410,-157.96613455,0.00024876,2]
[328314794,1717155044420,-1253.45510998,0.00024876,2]
[328314795,1717155044430,-528.99539296,0.00024876,2]
[328314796,1717155044440,-389.78367346,0.00024876,2]
[328314797,1717155044451,-557.7646129,0.00024876,2]
[328314798,1717155044461,-698.36721899,0.00024876,2]
[328314814,1717155046785,-1984.16262084,0.00024876,2]
[328314815,1717155046795,-286.75441956,0.00024876,2]
[328314816,1717155046804,-155.44958289,0.00024876,2]
[328314817,1717155046814,-267.72789564,0.00024876,7]
[328314818,1717155046825,-6164.55356758,0.00024876,2]
[328314819,1717155046834,-10700.72784398,0.00024876,2]
[328314825,1717155100958,1341.11051274,9.999e-05,2]
[328314826,1717155107216,181.73931373,9.999e-05,2]
[328314827,1717155114156,282.02261559,9.999e-05,2]
[328314848,1717155821358,-151.0,0.00024541,5]
[328314849,1717155821379,-151.0,0.00024541,5]
[328314892,1717156232587,-166.666666,0.0002325,2]
[328314893,1717156232598,-483.59484916,0.00024408,2]
[328314894,1717156232650,-3746.18823031,0.00024408,2]
[328314895,1717156232660,-181.37119988,0.00024441,2]
[328314896,1717156232671,-1916.48364269,0.0002454,2]
[328314930,1717156238512,-3771.56529281,0.0002454,2]
[328314932,1717156238524,-996.19586907,0.0002454,2]
[328314935,1717156238545,-2172.9195391,0.0002454,2]
[328314938,1717156238561,-1989.08275627,0.0002454,2]
[328314943,1717156238604,-709.90157061,0.0002454,2]
[328315090,1717156243237,-355.53413047,0.0002454,2]
[328315092,1717156243248,-1955.31525145,0.0002454,2]
[328315094,1717156243260,-28171.65745838,0.0002454,2]
[328315095,1717156243269,-461.58335744,0.00024541,2]
[328315097,1717156243278,-3076.09911632,0.00024541,2]
[328315109,1717156243721,-2261.24061046,0.00024541,2]
[328315124,1717156246683,-7493.57049243,0.00024541,2]
[328315125,1717156246692,-3985.31374501,0.00024541,2]
[328315126,1717156246702,-224.83709056,0.00024541,2]
[328315127,1717156246711,-915.47663357,0.00024776,2]
[328315128,1717156246721,-282.0,0.000248,2]
[328315129,1717156246731,-7054.01953135,0.00024851,2]
[328315130,1717156246740,-1458.76544608,0.00024851,2]
[328315230,1717157438784,-151.0,0.00023397,5]
[328315231,1717157438794,-250.0,0.00023704,2]
[328315233,1717157438803,-199.916334,0.00023798,2]
[328315235,1717157438812,-238.36716216,0.00024,2]
[328315237,1717157438823,-4889.71246969,0.00024,2]
[328315238,1717157438834,-25.45094667,0.00024,2]
[328315239,1717157438843,-151.0,0.00024035,5]
[328315240,1717157438853,-672.38292056,0.00024489,2]
[328315241,1717157438865,-3447.98223558,0.00024489,2]
[328315242,1717157438875,-151.0,0.00024672,5]
[328315243,1717157438884,-151.0,0.00024672,5]
[328315244,1717157438893,-583.3102302,0.000247,2]
[328315245,1717157438903,-291.9275846,0.000247,2]
[328315246,1717157438912,-291.9275846,0.000247,2]
[328315247,1717157438921,-291.9275846,0.000247,2]
[328315248,1717157438931,-707.87435925,0.00024776,2]
[328315254,1717157441590,-1292.12564075,0.00024776,2]
[328315256,1717157441599,-6064.07189529,0.00024776,2]
[328315257,1717157441608,-807.63834648,0.00024776,2]
[328315258,1717157441618,-1471.08503008,0.00024777,2]
[328315259,1717157441627,-35339.50849206,0.00024778,3]
[328315260,1717157441637,-282.0,0.000248,2]
[328315261,1717157441646,-564.0,0.000248,2]
[328315262,1717157441657,-599.0,0.000248,2]
[328315263,1717157441666,-20131.11580263,0.000248,3]
[328315264,1717157441675,-450.24751856,0.00024851,7]
[328315265,1717157441684,-224.60498641,0.00024851,2]
[328315266,1717157441694,-461.58335744,0.00024851,2]
[328315267,1717157441703,-12830.91021921,0.00024851,2]
[328315268,1717157441712,-3985.31374501,0.00024851,2]
[328315269,1717157441721,-3377.08356661,0.00024851,2]
[328315270,1717157441731,-481.93897401,0.00024851,2]
[328315271,1717157441832,-474.28275,0.00024852,2]
[328315272,1717157441842,-325.92072902,0.00024852,2]
[328315273,1717157441852,-500.0,0.00024852,2]
[328315274,1717157441861,-576.31497053,0.00024852,2]
[328315275,1717157441874,-500.0,0.00024852,2]
[328315276,1717157441884,-500.0,0.00024852,2]
[328315277,1717157441893,-500.0,0.00024852,2]
[328315278,1717157441905,-500.0,0.00024852,2]
[328315279,1717157441914,-500.0,0.00024852,2]
[328315280,1717157441924,-500.0,0.00024852,2]
[328315281,1717157441933,-500.0,0.00024852,2]
[328315282,1717157441941,-525.68654892,0.00024852,2]
[328315283,1717157441950,-500.0,0.00024852,2]
[328315284,1717157441959,-500.0,0.00024852,2]
[328315285,1717157441968,-500.0,0.00024852,2]
[328315286,1717157441978,-3705.57,0.00024853,3]
[328315287,1717157441988,-3087.97,0.00024853,3]
[328315288,1717157441997,-2573.31,0.00024853,3]
[328315289,1717157442007,-1882.69982894,0.00024874,2]
[328315290,1717157442016,-309.6903097,0.00024874,2]
[328315291,1717157442025,-295.94908936,0.00024874,2]
[328315292,1717157442035,-3512.73,0.00024875,2]
[328315293,1717157442043,-3512.73,0.00024875,2]
[328315294,1717157442053,-3512.73,0.00024875,2]
[328315295,1717157442062,-3512.73,0.00024875,2]
[328315296,1717157442071,-3512.73,0.00024875,2]
[328315297,1717157442080,-3069.3372597,0.00024875,2]
[328315322,1717157443906,-1499.09486295,0.00024776,2]
[328315324,1717157443916,-254.61406918,0.00024875,2]
[328315326,1717157443932,-188.77867112,0.00024875,2]
[328315328,1717157443942,-1615.54475188,0.00024875,2]
[328315331,1717157443954,-1897.18524812,0.00024875,2]
[328315333,1717157443963,-7854.81665391,0.00024876,7]
[328315335,1717157443972,-235.16653938,0.00024876,2]
[328315337,1717157443981,-283.78347407,0.00024876,2]
[328315339,1717157443990,-214.5729156,0.00024876,2]
[328315341,1717157444000,-156.23573304,0.00024876,2]
[328315343,1717157444009,-206.93235988,0.00024876,2]
[328315345,1717157444019,-679.62821803,0.00024876,2]
[328315346,1717157444028,-77.92523841,0.00024876,2]
[328315349,1717157444039,-36222.99001946,0.00024876,2]
[328315351,1717157444050,-883.496942,0.00024876,2]
[328315388,1717158451598,-1000.0,0.0003325,120]
[328315389,1717158451621,-1000.0,0.0003325,120]
[328315390,1717158451642,-1000.0,0.0003325,90]
[328315391,1717158451664,-1000.0,0.0003325,90]
[328315392,1717158451686,-280.099999,0.0003325,90]
[328315393,1717158451707,-523.299999,0.0003325,120]
[328315394,1717158451730,-653.0,0.0003325,120]
[328315395,1717158451752,-846.83409812,0.0003325,120]
[328315396,1717158451774,-598.3315763,0.0003325,120]
[328315397,1717158451796,-808.91497448,0.0003325,120]
[328315398,1717158451818,-2000.0,0.0003325,120]
[328315399,1717158451839,-220.76938182,0.0003325,120]
[328315400,1717158451861,-1015.5232408,0.0003325,120]
[328315401,1717158451882,-1778.53291538,0.0003325,120]
[328315402,1717158451903,-1024.86666616,0.0003325,120]
[328315443,1717158633393,-292.07469675,0.00018654,2]
[328315445,1717158633403,-32.80304957,0.0002,4]
[328315450,1717158633445,-495.36348582,0.0002,4]
[328315452,1717158633454,-160.2,0.00021726,3]
[328315454,1717158633463,-736.41292073,0.0002219,2]
[328315456,1717158633474,-24153.58707927,0.0002219,2]
[328315458,1717158633483,-166.666666,0.00022223,2]
[328315460,1717158633492,-164.48151,0.00022266,2]
[328315462,1717158633501,-160.2,0.00022342,3]
[328315464,1717158633510,-166.666666,0.00022829,2]
[328315466,1717158633519,-160.2,0.00022957,3]
[328315468,1717158633528,-166.666666,0.00023435,2]
[328315470,1717158633538,-160.2,0.00023573,5]
[328315472,1717158633548,-927.58017558,0.00023628,2]
[328315474,1717158633557,-600.0,0.00023881,2]
[328315476,1717158633567,-166.666666,0.0002404,2]
[328315478,1717158633576,-160.2,0.00024189,5]
[328315480,1717158633586,-150.34623517,0.000245,2]
[328315482,1717158633595,-4231.65194067,0.00024554,2]
[328315484,1717158633605,-251.98208689,0.000246,2]
[328315486,1717158633614,-251.98208689,0.000246,2]
[328315488,1717158633623,-251.98208689,0.000246,2]
[328315490,1717158633632,-166.666666,0.00024646,2]
[328315492,1717158633642,-11289.97167207,0.0002468,2]
[328315535,1717158639027,-13798.87186593,0.0002468,2]
[328315536,1717158639038,-330.29329239,0.00024774,2]
[328315538,1717158639049,-330.29329238,0.00024775,2]
[328315540,1717158639060,-162.72511332,0.00024776,2]
[328315541,1717158639070,-330.29329238,0.00024776,2]
[328315542,1717158639081,-330.29329238,0.00024777,2]
[328315543,1717158639091,-330.29329238,0.00024778,2]
[328315544,1717158639100,-282.0,0.000248,2]
[328315545,1717158639111,-160.2,0.00024804,5]
[328315546,1717158639121,-7054.01953135,0.00024849,2]
[328315547,1717158639132,-2144.43,0.00024864,3]
[328315548,1717158639142,-1787.02,0.00024864,3]
[328315549,1717158639158,-1489.19,0.00024864,3]
[328315550,1717158639168,-4462.09491931,0.00024872,2]
[328315551,1717158639179,-203.26403571,0.00024873,2]
[328315552,1717158639190,-500.0,0.00024873,2]
[328315554,1717158639204,-246.99213022,0.00024873,2]
[328315555,1717158639214,-500.0,0.00024873,2]
[328315556,1717158639224,-500.0,0.00024873,2]
[328315557,1717158639234,-500.0,0.00024873,2]
[328315558,1717158639244,-500.0,0.00024873,2]
[328315559,1717158639256,-500.0,0.00024873,2]
[328315560,1717158639266,-500.0,0.00024873,2]
[328315561,1717158639276,-500.0,0.00024873,2]
[328315562,1717158639286,-500.0,0.00024873,2]
[328315563,1717158639296,-500.0,0.00024873,2]
[328315564,1717158639306,-500.0,0.00024873,2]
[328315565,1717158639316,-500.0,0.00024873,2]
[328315566,1717158639327,-500.0,0.00024873,2]
[328315567,1717158639337,-500.0,0.00024873,2]
[328315568,1717158639348,-500.0,0.00024873,2]
[328315569,1717158639358,-500.0,0.00024873,2]
[328315570,1717158639368,-500.0,0.00024873,2]
[328315571,1717158639377,-500.0,0.00024873,2]
[328315572,1717158639387,-440.44244668,0.00024873,2]
[328315573,1717158639397,-500.0,0.00024873,2]
[328315574,1717158639407,-80000.0,0.00024874,2]
[328315575,1717158639416,-647.33121107,0.00024874,2]
[328315576,1717158639426,-156.68407224,0.00024875,2]
[328315577,1717158639436,-2488.19,0.00024875,2]
[328315578,1717158639449,-2488.19,0.00024875,2]
[328315579,1717158639459,-2488.19,0.00024875,2]
[328315580,1717158639468,-2488.19,0.00024875,2]
[328315581,1717158639478,-2488.19,0.00024875,2]
[328315582,1717158639487,-2488.19,0.00024875,2]
[328315583,1717158639496,-2488.19,0.00024875,2]
[328315584,1717158639506,-3927.40832696,0.00024876,7]
[328315585,1717158639516,-225.12375928,0.00024876,7]
[328315586,1717158639526,-24760.96275375,0.00024876,2]
[328315587,1717158639540,-9259.02507442,0.00024876,2]
[328315588,1717158639552,-3767.89898639,0.00024876,2]
[328315589,1717158639565,-4870.82690425,0.00024876,2]
[328315705,1717158644206,-330.29329238,0.00024864,3]
[328316057,1717158648217,-527.82833493,0.00024863,4]
[328316058,1717158648227,-910.69670762,0.00024864,3]
[328316059,1717158648236,-6551.96449428,0.00024876,2]
[328316061,1717158648391,-14914.09012138,0.00024876,2]
[328316062,1717158648403,-80115.13360934,0.00024876,2]
[328316063,1717158648413,-228.88797375,0.00024876,2]
[328316064,1717158648423,-248.48655854,0.00024876,2]
[328316065,1717158648432,-151.0,0.00024876,2]
[328316066,1717158648441,-151.0,0.00024876,2]
[328316067,1717158648456,-870.488746,0.00024876,2]
[328316068,1717158648465,-870.488746,0.00024876,2]
[328316069,1717158648475,-151.0,0.00024876,2]
[328316070,1717158648484,-2488.19,0.00024876,2]
[328316071,1717158648494,-151.0,0.00024877,2]
[328316072,1717158648504,-151.0,0.00024877,2]
[328316073,1717158648513,-151.0,0.00024877,2]
[328316074,1717158648523,-151.0,0.00024877,2]
[328316075,1717158648532,-151.725826,0.00024877,2]
[328316076,1717158648542,-162.344607,0.00024877,2]
[328316077,1717158648551,-151.0,0.00024877,2]
[328316078,1717158648561,-151.0,0.00024877,2]
[328316079,1717158648571,-195.039684,0.00024877,2]
[328316080,1717158648580,-195.039684,0.00024877,2]
[328316081,1717158648590,-151.0,0.00024877,2]
[328316082,1717158648599,-151.0,0.00024877,2]
[328316083,1717158648609,-151.0,0.00024877,2]
[328316084,1717158648619,-151.0,0.00024877,2]
[328316085,1717158648628,-151.0,0.00024877,2]
[328316086,1717158648638,-151.0,0.00024877,2]
[328316087,1717158648647,-151.0,0.00024877,2]
[328316088,1717158648657,-151.0,0.00024877,2]
[328316089,1717158648666,-151.0,0.00024877,2]
[328316090,1717158648676,-214.09735,0.00024877,2]
[328316091,1717158648685,-151.0,0.00024877,2]
[328316092,1717158648701,-870.488746,0.00024877,2]
[328316093,1717158648711,-870.488746,0.00024877,2]
[328316094,1717158648720,-870.488746,0.00024877,2]
[328316095,1717158648729,-870.488746,0.00024877,2]
[328316096,1717158648739,-2488.19,0.00024877,2]
[328316097,1717158648750,-1894.26214125,0.00024877,2]
[328316103,1717159316299,155.00930056,9.999e-05,2]
[328316137,1717159832326,-897.23930559,0.00018,2]
[328316140,1717159832335,-196.93133479,0.000189,2]
[328316141,1717159832344,-281.70501791,0.00022675,2]
[328316143,1717159832354,-166.666666,0.00023025,2]
[328316144,1717159832363,-196.93133479,0.000239,2]
[328316145,1717159832372,-185.349475,0.00024466,2]
[328316146,1717159832381,-159.604771,0.00024466,2]
[328316147,1717159832390,-500.0,0.000245,2]
[328316148,1717159832398,-218.47651522,0.000245,2]
[328316170,1717159838274,-328.52348478,0.000245,2]
[328316171,1717159838284,-669.85822909,0.0002452,2]
[328316172,1717159838320,-1078.37662898,0.0002452,2]
[328316197,1717159843759,-459.74120141,0.0002452,2]
[328316217,1717159848286,-277.01414055,0.0002452,2]
[328316322,1717161032410,-383.7998292,0.00022999,4]
[328316330,1717161032501,-144.36670619,0.00022999,4]
[328316331,1717161032511,-194.13394804,0.00023,2]
[328316333,1717161032520,-166.666666,0.00023261,2]
[328316335,1717161032529,-306.964877,0.00023507,2]
[328316337,1717161032538,-2414.2318061,0.00024145,2]
[328316338,1717161032547,-3985.31374501,0.0002452,2]
[328316340,1717161032556,-4620.03408696,0.0002452,2]
[328316920,1717161042352,-225.12375928,0.0002452,7]
[328316922,1717161042362,-8210.87613225,0.0002452,2]
[328316924,1717161042372,-153.0,0.000246,2]
[328316926,1717161042381,-267.0886936,0.000246,2]
[328316928,1717161042393,-204.8154073,0.000246,2]
[328316930,1717161042402,-595.68161667,0.00024778,2]
[328316932,1717161042412,-1451.61048939,0.00024778,3]
[328316934,1717161042425,-5401.6713444,0.00024778,3]
[328316936,1717161042434,-2000.0,0.00024778,2]
[328316938,1717161042444,-282.0,0.000248,2]
[328316940,1717161042452,-9953.51109671,0.000248,2]
[328316941,1717161042461,-560.0,0.000248,2]
[328316942,1717161042470,-1088.71,0.0002486,3]
[328316944,1717161042479,-899.70327903,0.00024868,2]
[328316945,1717161042489,-177.65504906,0.00024869,2]
[328316946,1717161042498,-500.0,0.00024869,2]
[328316947,1717161042507,-550.0,0.00024869,2]
[328316948,1717161042516,-500.0,0.00024869,2]
[328316949,1717161042525,-500.0,0.00024869,2]
[328316950,1717161042534,-500.0,0.00024869,2]
[328316951,1717161042543,-275.96505927,0.00024869,2]
[328316952,1717161042552,-500.0,0.00024869,2]
[328316953,1717161042561,-500.0,0.00024869,2]
[328316954,1717161042571,-500.0,0.00024869,2]
[328316955,1717161042580,-500.0,0.00024869,2]
[328316956,1717161042589,-500.0,0.00024869,2]
[328316957,1717161042599,-298.42059236,0.00024869,2]
[328316958,1717161042608,-500.0,0.00024869,2]
[328316959,1717161042617,-500.0,0.00024869,2]
[328316960,1717161042626,-500.0,0.00024869,2]
[328316961,1717161042635,-432.13273401,0.00024869,2]
[328316962,1717161042752,-500.0,0.00024869,2]
[328316963,1717161042762,-500.0,0.00024869,2]
[328316964,1717161042771,-22711.57163109,0.0002487,2]
[328316965,1717161042791,-370.33268568,0.0002487,2]
[328317028,1717161044157,-907.26,0.0002486,3]
[328317030,1717161044167,-8431.79580532,0.0002487,2]
[328317040,1717161044256,-1428.26609246,0.0002487,2]
[328317519,1717161048615,-471.37355978,0.0002452,2]
[328317523,1717161048626,-980.60678312,0.0002452,2]
[328317832,1717161534298,28308.0,0.0002,2]
[328317834,1717161562701,617.546835,0.000275,30]
[328317867,1717162232624,-166.666666,0.00022268,2]
[328317868,1717162232634,-1296.78969631,0.00022724,2]
[328317869,1717162232646,-361.8150045,0.00022724,2]
[328317870,1717162232658,-1647.56062499,0.00022724,2]
[328317871,1717162232668,-194.13394804,0.00023,2]
[328317872,1717162232678,-151.0,0.00023354,5]
[328317873,1717162232687,-151.0,0.00023589,5]
[328317874,1717162232696,-151.0,0.00023589,5]
[328317875,1717162232706,-2000.0,0.0002374,2]
[328317876,1717162232715,-913.5543789,0.00023744,2]
[328317877,1717162232724,-201.73279014,0.00023756,2]
[328317878,1717162232734,-166.666666,0.00023785,2]
[328317879,1717162232743,-151.0,0.00023825,5]
[328317880,1717162232753,-151.0,0.00023825,5]
[328317881,1717162232763,-417.75979028,0.00023839,2]
[328317882,1717162232772,-389.5261777,0.00023839,2]
[328317883,1717162232782,-500.0,0.00023839,2]
[328317884,1717162232791,-619.99914191,0.00023839,2]
[328317885,1717162232801,-229.6398202,0.00023839,2]
[328317886,1717162232811,-194.69368383,0.00023839,2]
[328317887,1717162232822,-305.30631617,0.00023839,2]
[328317888,1717162232832,-500.0,0.00023839,2]
[328317889,1717162232842,-500.0,0.00023839,2]
[328317890,1717162232853,-500.0,0.00023839,2]
[328317891,1717162232863,-500.0,0.00023839,2]
[328317892,1717162232872,-500.0,0.00023839,2]
[328317893,1717162232882,-1963.70416348,0.0002384,7]
[328317894,1717162232892,-2736.39847053,0.0002384,2]
[328317936,1717162242108,-1558.64255,0.0002384,2]
[328318203,1717162644554,-364.49833001,0.00023,2]
[328318204,1717162644575,-194.13394804,0.00023739,2]
[328318205,1717162644597,-2000.0,0.0002374,2]
[328318206,1717162644619,-277.8145371,0.0002374,2]
[328318207,1717162644640,-386.37019723,0.0002374,2]
[328318208,1717162644663,-193.63004192,0.0002374,2]
[328318209,1717162644683,-1734.62079356,0.00023838,2]
[328318210,1717162644705,-1198.1575418,0.00023838,2]
[328318211,1717162644734,-500.0,0.00023839,2]
[328318212,1717162644762,-500.0,0.00023839,2]
[328318213,1717162644795,-500.0,0.00023839,2]
[328318214,1717162644823,-400.80698775,0.00023839,2]
[328318215,1717162644848,-500.0,0.00023839,2]
[328318216,1717162644871,-500.0,0.00023839,2]
[328318217,1717162644895,-500.0,0.00023839,2]
[328318218,1717162644915,-500.0,0.00023839,2]
[328318219,1717162644942,-500.0,0.00023839,2]
[328318220,1717162644968,-500.0,0.00023839,2]
[328318221,1717162644992,-500.0,0.00023839,2]
[328318222,1717162645021,-500.0,0.00023839,2]
[328318223,1717162645048,-500.0,0.00023839,2]
[328318224,1717162645075,-370.52295023,0.00023839,2]
[328318225,1717162645097,-339.2121941,0.00023839,2]
[328318226,1717162645119,-215433.49855573,0.0002384,2]
[328318227,1717162645141,-2643.72462197,0.0002384,2]
[328318229,1717162662199,273.37336231,9.9e-05,2]
[328318230,1717162670920,273.37336231,9.9e-05,2]
[328318231,1717162703121,273.37336231,9.9e-05,2]
[328318232,1717162713915,456.19889952,9.999e-05,2]
[328318233,1717162729730,799.38249379,9.9e-05,2]
[328318234,1717162752299,155.0356582,9.999e-05,2]
[328318235,1717162764345,1341.11051274,9.999e-05,2]
[328318236,1717162772634,371.96487364,9.999e-05,2]
[328318248,1717163022068,273.37336231,9.9e-05,2]
[328318249,1717163030818,266.0654711,9.9e-05,2]
[328318250,1717163044680,2638.85222435,9.999e-05,2]
[328318251,1717163077562,3377.08356661,9.999e-05,2]
[328318252,1717163097663,1172.62354248,9.999e-05,2]
[328318254,1717163131811,634.71560421,9.999e-05,2]
[328318261,1717163341238,273.37336231,9.9e-05,2]
[328318262,1717163344859,155.0294556,9.999e-05,2]
[328318263,1717163349105,488.8289708,9.999e-05,2]
[328318264,1717163349364,551.57863063,9.999e-05,2]
[328318265,1717163350605,273.37336231,9.9e-05,2]
[328318267,1717163360478,273.37336231,9.9e-05,2]
[328318268,1717163364791,302.80877693,9.999e-05,2]
[328318269,1717163375894,164.38618998,9.999e-05,2]
[328318270,1717163381518,231.2033584,9.999e-05,2]
[328318271,1717163404463,456.19889952,9.999e-05,2]
[328318287,1717163431920,-296.2363545,0.00017658,2]
[328318289,1717163431931,-703.7636435,0.00017658,2]
[328318369,1717163439787,-341.11051474,0.00017658,2]
[328318371,1717163439797,-292.07469675,0.0001766,2]
[328318373,1717163439807,-1123.98,0.0002,2]
[328318375,1717163439817,-166.666666,0.00021918,2]
[328318377,1717163439827,-281.47347611,0.00022188,2]
[328318379,1717163439836,-551.23403467,0.00022188,2]
[328318381,1717163439846,-355.99504786,0.00022188,2]
[328318383,1717163439856,-164.28950494,0.00022188,2]
[328318385,1717163439865,-231.6449896,0.00022188,2]
[328318387,1717163439875,-537.15877029,0.00022188,2]
[328318389,1717163439884,-250.85066658,0.00022189,2]
[328318391,1717163439894,-3600.89582326,0.0002219,2]
[328318609,1717163443583,-5389.19435479,0.0002219,2]
[328320318,1717163460952,273.37336231,9.9e-05,2]
[328321240,1717163470465,273.37336231,9.9e-05,2]
[328322076,1717163480370,273.37336231,9.9e-05,2]
[328322486,1717163488574,273.37336231,9.9e-05,2]
[328322487,1717163497838,273.37336231,9.9e-05,2]
[328322488,1717163506555,273.37336231,9.9e-05,2]
[328322489,1717163516413,273.37336231,9.9e-05,2]
[328322490,1717163517307,155.0310062,9.9e-05,2]
[328322491,1717163525744,273.37336231,9.9e-05,2]
[328322492,1717163531607,3377.08356661,9.9e-05,2]
[328322493,1717163535268,156.16831072,9.9e-05,2]
[328322494,1717163535320,273.37336231,9.9e-05,2]
[328322495,1717163545122,273.37336231,9.9e-05,2]
[328322496,1717163549411,924.13408425,9.999e-05,2]
[328322497,1717163553720,1173.20393434,9.9e-05,2]
[328322498,1717163554972,273.37336231,9.9e-05,2]
[328322499,1717163564773,273.37336231,9.9e-05,2]
[328322500,1717163568366,3611.12139104,9.9e-05,2]
[328322501,1717163573519,273.37336231,9.9e-05,2]
[328322502,1717163582821,273.37336231,9.9e-05,2]
[328322503,1717163592533,273.37336231,9.9e-05,2]
[328322504,1717163603488,273.37336231,9.9e-05,2]
[328322505,1717163612514,273.37336231,9.9e-05,2]
[328322506,1717163621636,273.37336231,9.9e-05,2]